Workbook

Sheet NSU
B1: Kirsi Lakaniemi | E1: 1.6.1967
B2: SUPERPESIS | E2: Runkosarja | I2: Kärkilyönnit (KL), pesänvälit | Q2: Runkosarja | U2: Ylempi loppusarja | AB2: Ylempi loppusarja | AG2: Play off, voitot, voittoprosentti | AL2: Arvo-ottelut ja mitalit
B3: Vuosi | C3: Sija | D3: Seura | E3: OTT | F3: KUN | G3: LÖI | H3: TOI | I3: KL | J3: 0 > 1 | K3: 1 > 2 | L3: 2 > 3 | M3: 3 > k | N3: KL-% | P3: LÖI | Q3: TOI | R3: L+T | S3: KL | U3: OTT | V3: KUN | W3: LÖI | X3: TOI | Y3: KL | Z3: KL-% | AB3: LÖI | AC3: TOI | AD3: L+T | AE3: KL | AG3: Puolivälierät | AH3: Välierät | AI3: Pronssi | AJ3: Finaalit | AL3: IL | AM3: LL | AN3: Cup | AO3: K | AP3: H | AQ3: P
B4: 1986 | C4: 5. | D4: VäVi | E4: 18 | F4: 4 | G4: 15 | H4: 19 | I4: 73 | J4: 12 | K4: 14 | L4: 28 | M4: 19 | N4: ---- | AL4: 1 | AM4: 1
B5: 1987 | C5: 3. | D5: VäVi | E5: 18 | F5: 1 | G5: 19 | H5: 19 | I5: 105 | J5: 13 | K5: 29 | L5: 43 | M5: 20 | N5: ---- | S5: 5. | AL5: 1 | AM5: 1 | AN5: 1 | AQ5: 1
B6: 1988 | C6: 6. | D6: VäVi | E6: 18 | F6: 0 | G6: 14 | H6: 12 | I6: 116 | J6: 12 | K6: 37 | L6: 53 | M6: 14 | N6: ---- | AL6: 1 | AM6: 1
B7: 1989 | C7: 8. | D7: VäVi | E7: 18 | F7: 0 | G7: 13 | H7: 10 | I7: 115 | J7: 22 | K7: 36 | L7: 44 | M7: 13 | N7: ---- | S7: 10. | AL7: 1 | AM7: 1
B8: 1990 | C8: 11. | D8: VäVi | E8: 22 | F8: 2 | G8: 41 | H8: 21 | I8: 161 | J8: 22 | K8: 33 | L8: 63 | M8: 43 | N8: 68.9 % | O8: =PRODUCT(I8/N8) -> 233.6719884 | S8: 9. | AL8: 1 | AM8: 1
B9: 1991 | C9: 11. | D9: VäVi | E9: 22 | F9: 3 | G9: 31 | H9: 19 | I9: 138 | J9: 12 | K9: 35 | L9: 57 | M9: 34 | N9: 62.0 % | O9: =PRODUCT(I9/N9) -> 222.5806452 | AL9: 1 | AM9: 1
B10: 1992 | C10: 7. | D10: Roihu | E10: 22 | F10: 1 | G10: 43 | H10: 26 | I10: 151 | J10: 7 | K10: 35 | L10: 65 | M10: 44 | N10: 71.9 % | O10: 210.0139082 | S10: 6. | T10: =PRODUCT(L10/S10) ->  | AF10: =PRODUCT(#REF!/AE10) ->  | AG10: 1-2 ViPa | AL10: 1
B11: 1993 | C11: 7. | D11: Roihu | E11: 24 | F11: 2 | G11: 47 | H11: 13 | I11: 142 | J11: 9 | K11: 32 | L11: 52 | M11: 49 | N11: 59.7 % | O11: 237.8559464 | P11: 6. | AG11: 0-2 ViPa | AL11: 1
B12: 1994 | C12: 5. | D12: Kiri | E12: 24 | F12: 3 | G12: 32 | H12: 17 | I12: 104 | J12: 10 | K12: 20 | L12: 39 | M12: 35 | N12: 54.7 % | O12: 190.1279707 | AF12: =PRODUCT(#REF!/AE12) ->  | AG12: 0-2 Virkiä
B13: 1995 | C13: 3. | D13: Kiri | E13: 22 | F13: 0 | G13: 42 | H13: 13 | I13: 137 | J13: 13 | K13: 26 | L13: 56 | M13: 42 | N13: 63.4 % | O13: 216.0883281 | P13: 8. | S13: 10. | AG13: 3-1 Virkiä | AH13: 0-3 Lippo | AI13: 2-0 ViPa | AL13: 1 | AQ13: 1
B14: 1996 | C14: 1. | D14: Kiri | E14: 24 | F14: 2 | G14: 49 | H14: 10 | I14: 138 | J14: 20 | K14: 18 | L14: 49 | M14: 51 | N14: 61.3 % | O14: 224.9755461 | P14: 5. | AG14: 3-0 Roihu | AH14: 3-2 ViU | AJ14: 3-2 Lippo | AL14: 1 | AO14: 1
B15: 1997 | C15: 1. | D15: Kiri | E15: 15 | F15: 0 | G15: 17 | H15: 1 | I15: 35 | J15: 0 | K15: 1 | L15: 17 | M15: 17 | N15: 43.8 % | O15: 79.9086758 | AG15: 3-0 Manse PP | AH15: 3-0 Pesäkarhut | AJ15: 3-1 Virkiä | AO15: 1
B16: Yhteensä | E16: =SUM(E4:E15) -> 247 | F16: 18 | G16: 363 | H16: 180 | I16: 1415 | J16: 152 | K16: 316 | L16: 566 | M16: 381 | N16: =PRODUCT(1006/O16) -> 62.3 % | O16: =SUM(O8:O15) -> 1615.223009 | P16: 0-0-0 | Q16: 0-0-0 | R16: 0-0-0 | S16: 0-0-0 | U16: =SUM(U4:U15) -> 0 | V16: 0 | W16: 0 | X16: 0 | Y16: 0 | AA16: =SUM(#REF!) ->  | AB16: 0-0-0 | AC16: 0-0-0 | AD16: 0-0-0 | AE16: 0-0-0 | AG16: 3/6 50 | AH16: 2/3 67% | AI16: 1/1 100% | AJ16: 2/2 100% | AL16: 10 | AM16: 6 | AN16: 1 | AO16: 2 | AP16: 0 | AQ16: 2
B17: Pesispörssi | D17: =SUM(F16:H16)+((I16-F16-G16)/3)+(E16/3)+(AL16*25)+(AM16*25)+(AN16*15)+(AO16*25)+(AP16*20)+(AQ16*15) -> 1483.0
B19: URA SUPERISSA | E19: OTT | F19: KUN | G19: LÖI | H19: TOI | I19: KL | K19: ka/L | L19: ka/T | M19: ka/KL | N19: K - % | P19: ENSIMMÄISET RUNKOSARJASSA
B20: Runkosarja | E20: =PRODUCT(E16) -> 247 | F20: =PRODUCT(F16) -> 18 | G20: =PRODUCT(G16) -> 363 | H20: =PRODUCT(H16) -> 180 | I20: =PRODUCT(I16) -> 1415 | K20: =PRODUCT((F20+G20)/E20) -> 1.54 | L20: =PRODUCT(H20/E20) -> 0.73 | M20: =PRODUCT(I20/E20) -> 5.73 | N20: =PRODUCT(N16) -> 62.3 % | O20: =PRODUCT(O16) -> 1615.223009 | P20: Ottelu | R20: 11.05. 1986 VäVi - Roihu 2-1 | Y20: 1. ottelu | AB20: 18 v 11 kk 10 pv
B21: Ylempi loppusarja | O21: =PRODUCT(I21/N21) ->  | P21: Lyöty
B22: Alempi loppusarja | P22: Tuotu
B23: KAIKKI | E23: =SUM(E20:E22) -> 247 | F23: =SUM(F20:F22) -> 18 | G23: =SUM(G20:G22) -> 363 | H23: =SUM(H20:H22) -> 180 | I23: =SUM(I20:I22) -> 1415 | K23: =PRODUCT((F23+G23)/E23) -> 1.54 | L23: =PRODUCT(H23/E23) -> 0.73 | M23: =PRODUCT(I23/E23) -> 5.73 | O23: =SUM(O20:O22) ->  | P23: Kunnari
B25: Vuoden lukkari 1988
B27: Seurat | D27: VäVi = Vähänkyrön Viesti (1938)
D28: Roihu (1957)
D29: Kiri = Jyväskylän Kiri (1930)

Sheet Arvo-ottelut
B1: ITÄ - LÄNSI - KORTTI
B2: Kirsi Lakaniemi | C2: 1.6.1967
B3: NAISET | C3: Itä - Länsi, tulos | D3: Joukkue | E3: Seura | G3: V | H3: T | I3: H | J3: Up. | K3: Lj. | M3: O | N3: K | O3: L | P3: T | Q3: KL | R3: 1 | S3: 2 | T3: 3 | U3: k | V3: KL-% | W3: Pelinjohtaja | X3: Yleisöä
B4: 24.08. 1986 Stadion, Helsinki | C4: 0-1 | D4: Länsi | E4: VäVi | G4: 1 | J4: L | M4: 1 | W4: Markus Lakaniemi | X4: 8000
B5: 08.08. 1987 Stadion, Helsinki | C5: 3-2 | D5: Länsi | E5: VäVi | I5: 1 | J5: 3v | K5: 3 | L5: II p | M5: 1 | Q5: 5/5 | R5: 2/2 | S5: 2/2 | T5: 1/1 | V5: 100.0 % | W5: Markus Lakaniemi | X5: 4870
B6: 06.08. 1988 Ikaalinen | C6: 5-14 | D6: Länsi | E6: VäVi | G6: 1 | J6: L | K6: 8 | L6: A | M6: 1 | O6: 1 | Q6: 6/7 | R6: 2/2 | S6: 1/1 | T6: 2/2 | U6: 1/2 | V6: 85.7 % | W6: Paavo Lakaniemi | X6: 1501
B7: 22.07. 1989 Viinijärvi | C7: 8-5 | D7: Länsi | E7: VäVi | I7: 1 | J7: L | K7: 4 | L7: I p | M7: 1 | O7: 1 | P7: 1 | Q7: 3/5 | R7: 0/1 | S7: 1/1 | T7: 1/1 | U7: 1/2 | V7: 60.0 % | W7: Jari Haapanen | X7: 2076
B8: 12.08. 1990 Ulvila | C8: 10-1 | D8: Länsi | E8: VäVi | I8: 1 | J8: L | K8: 5 | M8: 1 | Q8: 1/2 | S8: 1/1 | T8: 0/1 | V8: 50.0 % | W8: Jari Haapanen | X8: 2783
B9: 20.07. 1991 Oulu | C9: 5-12 | D9: Länsi | E9: VäVi | G9: 1 | K9: jok | M9: 1 | Q9: 1/3 | R9: 1/1 | T9: 0/2 | V9: 33.3 % | W9: Markku Lähteenmäki | X9: 3495
B10: 27.06. 1992 Vihti | C10: 9-10 | D10: Itä | E10: Roihu | I10: 1 | J10: L | K10: 5 | L10: I p | M10: 1 | O10: 3 | Q10: 5/9 | S10: 2/3 | T10: 0/1 | U10: 3/5 | V10: 55.6 % | W10: Jari Haapanen | X10: 2430
B11: 24.07. 1993 Sotkamo | C11: 15-21 | D11: Itä | E11: Roihu | I11: 1 | K11: jok | M11: 1 | Q11: 0/4 | T11: 0/1 | U11: 0/3 | V11: 0.0 % | W11: Markku Kiiski | X11: 3799
B12: 15.07. 1995 Alajärvi | C12: 1-1 (4-3, 3-4, 0-0) | D12: Itä | E12: Kiri | H12: 1 | K12: jok | M12: 1 | O12: 1 | Q12: 2/2 | T12: 1/1 | U12: 1/1 | V12: 100.0 % | W12: Aulis Väisänen | X12: 4622
B13: 13.07. 1996 Kitee | C13: 2-1 (10-3, 3-7, 2-0) | D13: Itä | E13: Kiri | G13: 1 | J13: L | K13: 4 | M13: 1 | O13: 3 | Q13: 6/11 | R13: 1/1 | S13: 0/3 | T13: 2/3 | U13: 3/4 | V13: 54.5 % | W13: Jussi Viljanen | X13: 6113
B14: Yhteensä | G14: =SUM(G4:G13) -> 4 | H14: =SUM(H4:H13) -> 1 | I14: =SUM(I4:I13) -> 5 | M14: =SUM(M4:M13) -> 10 | O14: 9 | P14: 1 | Q14: 29/48 | R14: 6/7 | S14: 7/11 | T14: 7/13 | U14: 9/17 | V14: 60,4
B16: Ikä ensimmäisessä ottelussa | C16: 19 v 2 kk 23 pv
B18: B-TYTÖT | C18: Itä - Länsi, tulos | D18: Joukkue | E18: Seura | G18: V | H18: T | I18: H | J18: Up. | K18: Lj. | L18: Palk. | M18: O | N18: K | O18: L | P18: T | Q18: KL | R18: 1 | S18: 2 | T18: 3 | U18: k | V18: KL-% | W18: Pelinjohtaja | X18: Yleisöä
B19: 01.07. 1984 Vähäkyrö | C19: 4-3 | D19: Länsi | E19: VäVi | I19: 1 | J19: L | K19: 5 | L19: II p | M19: 1 | P19: 1 | Q19: 4/5 | R19: 2/3 | T19: 2/2 | V19: 80.0 % | W19: Markus Lakaniemi | X19: 280
B21: LIITTO - LEHDISTÖ - KORTTI
B22: NAISET | C22: Tulos | D22: Joukkue | E22: Seura | G22: V | H22: T | I22: H | J22: Up. | K22: Lj. | L22: Palk. | M22: O | N22: K | O22: L | P22: T | Q22: KL | R22: 1 | S22: 2 | T22: 3 | U22: k | V22: KL-% | W22: Pelinjohtaja | X22: Yleisöä
B23: 29.06. 1986 Viinijärvi | C23: 4-3 | D23: Liitto | E23: VäVi | G23: 1 | K23: vai | M23: 1 | Q23: 0/1 | S23: 0/1 | V23: 0.0 % | W23: Markku Lähteenmäki | X23: 880
B24: 28.06. 1987 Joutsa | C24: 5-2 | D24: Liitto | E24: VäVi | G24: 1 | J24: 3v | K24: 3 | M24: 1 | P24: 1 | Q24: 6/6 | R24: 3/3 | S24: 3/3 | V24: 100.0 % | W24: Kosti Parviainen | X24: 515
B25: 19.06. 1988 Vähäkyrö | C25: 11-1 | D25: Liitto | E25: VäVi | G25: 1 | J25: L | K25: 7 | L25: III p | M25: 1 | O25: 2 | Q25: 3/4 | T25: 1/1 | U25: 2/3 | V25: 75.0 % | W25: Kosti Parviainen | X25: 209
B26: 18.06. 1989 Vimpeli | C26: 7-13 | D26: Lehdistö | E26: VäVi | G26: 1 | J26: L | K26: 5 | L26: I p | M26: 1 | O26: 4 | P26: 1 | Q26: 7/11 | T26: 3/5 | U26: 4/6 | V26: 63.6 % | W26: Paavo Lakaniemi | X26: 725
B27: 16.06. 1990 Ikaalinen | C27: 1-2 | D27: Lehdistö | E27: VäVi | G27: 1 | K27: vai | M27: 1 | Q27: 1/2 | S27: 1/1 | T27: 0/1 | V27: 50.0 % | W27: Petri Kaijansinkko | X27: 350
B28: 08.06. 1991 Vihti | C28: 12-1 | D28: Lehdistö | E28: VäVi | I28: 1 | K28: vai | L28: II p | M28: 1 | Q28: 1/4 | R28: 1/2 | S28: 0/2 | V28: 25.0 % | W28: Ari Lehtiranta | X28: 643
B29: Yhteensä | G29: =SUM(G23:G28) -> 5 | I29: =SUM(I23:I28) -> 1 | M29: =SUM(M23:M28) -> 6 | O29: 6 | P29: 2 | Q29: 18/28 | R29: 4/5 | S29: 4/7 | T29: 4/7 | U29: 6/9 | V29: 64.3 %
B30: Ikä ensimmäisessä ottelussa | C30: 22 v 2 kk 25 pv
